bitfinex/quotes_BTCUSD_20240729
["timestamp","ask_amount","ask_price","bid_price","bid_amount"]
[1722256031501,0.07832548,69836.0,69835.0,1.186923]
[1722256032059,0.07832548,69836.0,69835.0,1.200923]
[1722256032696,0.1529584,69839.0,69838.0,1.044978]
[1722256032897,0.1529584,69839.0,69838.0,1.127878]
[1722256033143,0.0920584,69839.0,69838.0,1.172878]
[1722256035825,0.0920584,69839.0,69838.0,1.186878]
[1722256036026,0.0165584,69839.0,69838.0,1.186878]
[1722256038158,0.0165584,69839.0,69838.0,1.198878]
[1722256038938,0.03903573,69839.0,69838.0,1.198878]
[1722256040012,0.0165584,69839.0,69838.0,1.198878]
[1722256043428,0.03903563,69839.0,69838.0,1.198878]
[1722256050791,0.0165584,69839.0,69838.0,1.198878]
[1722256053431,0.0155584,69839.0,69838.0,1.198878]
[1722256053634,0.0165584,69839.0,69838.0,1.198878]
[1722256053821,0.0173984,69839.0,69838.0,1.198878]
[1722256054554,0.0163984,69839.0,69838.0,1.198878]
[1722256054732,0.0163984,69839.0,69838.0,1.260678]
[1722256055932,0.0173984,69839.0,69838.0,1.260678]
[1722256057759,0.03987509,69839.0,69838.0,1.260678]
[1722256058416,0.0173984,69839.0,69838.0,1.260678]
[1722256058721,0.0173984,69839.0,69838.0,1.198878]
[1722256061438,0.039875,69839.0,69838.0,1.198878]
[1722256062544,0.039875,69839.0,69838.0,1.115978]
[1722256062753,0.039875,69839.0,69838.0,1.198878]
[1722256063218,0.185475,69839.0,69838.0,0.886877]
[1722256064844,0.2498901,69839.0,69838.0,0.886877]
[1722256065272,0.185475,69839.0,69838.0,0.657776]
[1722256065486,0.185475,69839.0,69838.0,0.369651]
[1722256065672,0.185475,69839.0,69838.0,0.026]
[1722256065872,0.185475,69839.0,69838.0,0.14055]
[1722256065873,0.268375,69839.0,69838.0,0.14055]
[1722256066251,0.185475,69839.0,69838.0,0.14055]
[1722256066651,0.185475,69839.0,69838.0,0.026]
[1722256066852,0.185475,69839.0,69838.0,0.14055]
[1722256067225,0.185475,69839.0,69838.0,0.369651]
[1722256067735,0.185475,69839.0,69838.0,0.14055]
[1722256070130,0.185475,69839.0,69838.0,0.369651]
[1722256070969,0.185475,69839.0,69838.0,0.14055]
[1722256071126,0.185475,69839.0,69838.0,0.369651]
[1722256075317,0.185475,69839.0,69838.0,0.14055]
[1722256076151,0.185475,69839.0,69838.0,0.369651]
[1722256076362,0.185475,69839.0,69838.0,0.14055]
[1722256076567,0.185475,69839.0,69838.0,0.369651]
[1722256077375,0.185475,69839.0,69838.0,0.11455]
[1722256077599,0.185475,69839.0,69838.0,0.343651]
[1722256077793,0.185475,69839.0,69838.0,0.354651]
[1722256078351,0.185475,69839.0,69838.0,0.357651]
[1722256080398,0.185475,69839.0,69838.0,0.12855]
[1722256080798,0.314354,69839.0,69838.0,0.12855]
[1722256081017,0.314354,69839.0,69838.0,0.357651]
[1722256081412,0.185475,69839.0,69838.0,0.357651]
[1722256081610,0.31434709,69839.0,69838.0,0.357651]
[1722256081811,0.185475,69839.0,69838.0,0.357651]
[1722256084297,0.1629984,69839.0,69838.0,0.357651]
[1722256085803,0.1629984,69839.0,69838.0,0.12855]
[1722256086554,0.2219744,69839.0,69838.0,0.014]
[1722256086697,0.3531551,69839.0,69838.0,0.014]
[1722256086898,0.22431384,69839.0,69838.0,0.014]
[1722256087098,0.35313804,69839.0,69838.0,0.014]
[1722256088267,0.37561714,69839.0,69838.0,0.014]
[1722256088892,0.37557844,69839.0,69838.0,0.014]
[1722256089508,0.24679294,69839.0,69838.0,0.014]
[1722256089735,0.37557844,69839.0,69838.0,0.014]
[1722256089907,0.77422544,69839.0,69838.0,0.014]
[1722256090183,0.6698151,69839.0,69838.0,0.014]
[1722256090351,0.647336,69839.0,69838.0,0.014]
[1722256091118,0.647336,69839.0,69838.0,0.011]
[1722256091321,0.648336,69839.0,69838.0,0.011]
[1722256091441,0.877434,69839.0,69838.0,0.011]
[1722256091641,0.647336,69839.0,69838.0,0.011]
[1722256092039,0.6482789,69839.0,69838.0,0.012]
[1722256092640,0.64827893,69839.0,69838.0,0.012]
[1722256092885,0.73227893,69839.0,69838.0,0.012]
[1722256093086,0.73233059,69839.0,69838.0,0.012]
[1722256093241,0.70796084,69839.0,69838.0,0.012]
[1722256093596,0.96142942,69839.0,69838.0,0.012]
[1722256093808,0.73233142,69839.0,69838.0,0.012]
[1722256094162,0.75481205,69839.0,69838.0,0.012]
[1722256094359,0.98391005,69839.0,69838.0,0.001]
[1722256094560,0.89791144,69839.0,69838.0,0.001]
[1722256094899,0.75485267,69839.0,69838.0,0.001]
[1722256095501,0.75485267,69839.0,69838.0,0.003]
[1722256095911,0.76367548,69839.0,69838.0,0.003]
[1722256096094,0.53357748,69839.0,69838.0,0.002]
[1722256096292,0.37002848,69839.0,69838.0,0.003]
[1722256096515,0.45292848,69839.0,69838.0,0.003]
[1722256098211,0.56747748,69839.0,69838.0,0.003]
[1722256098653,0.56756487,69839.0,69838.0,0.003]
[1722256099401,0.56756487,69839.0,69838.0,0.001]
[1722256099884,0.62256487,69839.0,69838.0,0.001]
[1722256100597,0.85166287,69839.0,69838.0,0.001]
[1722256101367,1.08076087,69839.0,69838.0,0.001]
[1722256101747,0.85166287,69839.0,69838.0,0.001]
[1722256101947,0.85136148,69839.0,69838.0,0.001]
[1722256102192,1.08045948,69839.0,69838.0,0.001]
[1722256102474,1.22527384,69839.0,69838.0,0.001]
[1722256102988,1.22526613,69839.0,69838.0,0.001]
[1722256103314,1.08046326,69839.0,69838.0,0.001]
[1722256103516,1.22527017,69839.0,69838.0,0.001]
[1722256104076,1.08046326,69839.0,69838.0,0.001]
[1722256104292,1.22528578,69839.0,69838.0,0.001]
[1722256104684,1.08008177,69839.0,69838.0,0.001]
[1722256105105,1.08015255,69839.0,69838.0,0.001]
[1722256106206,0.79605455,69839.0,69838.0,0.001]
[1722256106409,0.85105455,69839.0,69838.0,0.001]
[1722256106608,0.99589878,69839.0,69838.0,0.001]
[1722256106906,0.85105455,69839.0,69838.0,0.001]
[1722256108399,0.95191304,69839.0,69838.0,0.001]
[1722256108560,0.97568576,69839.0,69838.0,0.001]
[1722256109177,0.483939,69839.0,69838.0,0.001]
[1722256109418,0.795937,69839.0,69838.0,0.001]
[1722256109815,0.36939,69839.0,69838.0,0.001]
[1722256110056,0.45229,69839.0,69838.0,0.001]
[1722256110328,0.566839,69839.0,69838.0,0.001]
[1722256111172,0.621839,69839.0,69838.0,0.001]
[1722256111372,0.566839,69839.0,69838.0,0.001]
[1722256111579,0.54435837,69839.0,69838.0,0.001]
[1722256112263,0.52058565,69839.0,69838.0,0.001]
[1722256112388,0.54509152,69839.0,69838.0,0.001]
[1722256113207,0.52058565,69839.0,69838.0,0.001]
[1722256113411,0.54534163,69839.0,69838.0,0.001]
[1722256114436,0.52058565,69839.0,69838.0,0.001]
[1722256114638,0.54530643,69839.0,69838.0,0.001]
[1722256115994,0.82940443,69839.0,69838.0,0.001]
[1722256116162,0.60030643,69839.0,69838.0,0.001]
[1722256116364,0.82940443,69839.0,69838.0,0.001]
[1722256116583,0.77940443,69839.0,69838.0,0.001]
[1722256116747,0.85188439,69839.0,69838.0,0.001]
[1722256118269,0.77216361,69839.0,69838.0,0.001]
[1722256118474,0.79643956,69839.0,69838.0,0.001]
[1722256118790,1.08053756,69839.0,69838.0,0.001]
[1722256118968,0.79643956,69839.0,69838.0,0.001]
[1722256121098,1.02553756,69839.0,69838.0,0.001]
[1722256121229,0.79643956,69839.0,69838.0,0.001]
[1722256121428,0.93953895,69839.0,69838.0,0.001]
[1722256121629,0.93961038,69839.0,69838.0,0.001]
[1722256121833,0.79651099,69839.0,69838.0,0.001]
[1722256122104,0.77216361,69839.0,69838.0,0.001]
[1722256122294,0.79653767,69839.0,69838.0,0.001]
[1722256122779,0.56743967,69839.0,69838.0,0.001]
[1722256123198,0.22439067,69839.0,69838.0,0.001]
[1722256123953,0.22205123,69839.0,69838.0,0.11555]
[1722256124177,0.001,69838.0,69837.0,0.114552]
[1722256124394,0.04864414,69838.0,69837.0,0.343656]
[1722256124804,0.04864199,69838.0,69837.0,0.343656]
[1722256124979,0.08461799,69838.0,69837.0,0.343656]
[1722256125388,0.04864199,69838.0,69837.0,0.343656]
[1722256125592,0.08461799,69838.0,69837.0,0.343656]
[1722256125799,0.08461799,69838.0,69837.0,0.420256]
[1722256125999,0.04864199,69838.0,69837.0,0.57276]
[1722256126204,0.02564199,69838.0,69837.0,0.57276]
[1722256126379,0.02564199,69838.0,69837.0,0.801864]
[1722256126590,0.001,69838.0,69837.0,0.941064]
[1722256126830,0.001,69838.0,69837.0,0.943064]
[1722256126831,0.13489761,69838.0,69837.0,0.943064]
[1722256127210,0.13489761,69838.0,69837.0,0.941064]
[1722256127409,0.12989761,69838.0,69837.0,0.941064]
[1722256127617,0.12989761,69838.0,69837.0,0.943064]
[1722256127818,0.12989761,69838.0,69837.0,0.944064]
[1722256128027,0.12939651,69838.0,69837.0,0.944064]
[1722256129992,0.12939651,69838.0,69837.0,0.942064]
[1722256130339,0.12939651,69838.0,69837.0,0.72096]
[1722256130541,0.15187522,69838.0,69837.0,0.72096]
[1722256130786,0.15187522,69838.0,69837.0,0.950064]
[1722256131181,0.02297871,69838.0,69837.0,0.950064]
[1722256131394,0.02297871,69838.0,69837.0,1.091988]
[1722256131395,0.02247871,69838.0,69837.0,1.091988]
[1722256131746,0.02247871,69838.0,69837.0,1.321092]
[1722256131948,0.08692359,69838.0,69837.0,1.091988]
[1722256132149,0.08692421,69838.0,69837.0,1.091988]
[1722256132383,0.08742421,69838.0,69837.0,1.091988]
[1722256133592,0.02297871,69838.0,69837.0,1.091988]
[1722256134550,0.0005,69838.0,69837.0,1.091988]
[1722256135042,0.1003984,69839.0,69838.0,0.860877]
[1722256135043,0.1008984,69839.0,69838.0,0.860877]
[1722256135221,0.1003984,69839.0,69838.0,0.924177]
[1722256135472,0.1003984,69839.0,69838.0,1.006377]
[1722256138144,0.12287542,69839.0,69838.0,1.235478]
[1722256138984,0.03697537,69839.0,69838.0,1.242478]
[1722256139446,0.03697537,69839.0,69838.0,1.235478]
[1722256139787,0.03697537,69839.0,69838.0,1.244478]
[1722256140346,0.03697537,69839.0,69838.0,1.235478]
[1722256140758,0.03697537,69839.0,69838.0,1.247478]
[1722256141151,0.03697537,69839.0,69838.0,1.261478]
[1722256142053,0.03697537,69839.0,69838.0,1.247478]
[1722256142428,0.03697537,69839.0,69838.0,1.261478]
[1722256143031,0.03697537,69839.0,69838.0,1.344378]
[1722256143981,0.01449835,69839.0,69838.0,1.344378]
[1722256144924,0.01499835,69839.0,69838.0,1.032377]
[1722256145131,0.01499835,69839.0,69838.0,0.803276]
[1722256145252,0.01499835,69839.0,69838.0,0.657776]
[1722256145463,0.01499835,69839.0,69838.0,0.14055]
[1722256145672,0.01499835,69839.0,69838.0,0.369651]
[1722256145875,0.09589835,69839.0,69838.0,0.369651]
[1722256146514,0.18166977,69839.0,69838.0,0.357651]
[1722256146853,0.09589835,69839.0,69838.0,0.357651]
[1722256147315,0.09589835,69839.0,69838.0,0.586752]
[1722256147743,0.11837555,69839.0,69838.0,0.586752]
[1722256147885,0.03747555,69839.0,69838.0,0.940977]
[1722256148730,0.03747555,69839.0,69838.0,1.023877]
[1722256148925,0.01449835,69839.0,69838.0,1.023877]
[1722256149124,0.01449835,69839.0,69838.0,1.105677]
[1722256149327,0.01449835,69839.0,69838.0,1.107677]
[1722256149662,0.01449835,69839.0,69838.0,1.093677]
[1722256149872,0.01449835,69839.0,69838.0,1.102677]
[1722256150074,0.01449835,69839.0,69838.0,1.093677]
[1722256150229,0.01449835,69839.0,69838.0,1.322778]
[1722256150476,0.01449835,69839.0,69838.0,1.336778]
[1722256150673,0.01449835,69839.0,69838.0,1.334778]
[1722256151043,0.01449835,69839.0,69838.0,1.341778]
[1722256151593,0.01449835,69839.0,69838.0,1.334778]
[1722256151812,0.01449835,69839.0,69838.0,1.344778]
[1722256152342,0.03697392,69839.0,69838.0,1.344778]
[1722256152837,0.03697392,69839.0,69838.0,1.330778]
[1722256153518,0.01449835,69839.0,69838.0,1.330778]
[1722256154891,0.01449835,69839.0,69838.0,1.344778]
[1722256156882,0.03697307,69839.0,69838.0,1.623879]
[1722256157086,0.03697307,69839.0,69838.0,1.573879]
[1722256157544,0.03697307,69839.0,69838.0,1.58274778]
[1722256157767,0.03697307,69839.0,69838.0,1.63274778]
[1722256157986,0.01449835,69839.0,69838.0,1.63424778]
[1722256158435,0.01449835,69839.0,69838.0,1.96334878]
[1722256158692,0.01449835,69839.0,69838.0,2.06334878]
[1722256158916,0.01449835,69839.0,69838.0,2.18235935]
[1722256159364,0.01449835,69839.0,69838.0,2.06334878]
[1722256159592,0.01449835,69839.0,69838.0,2.18235716]
[1722256160056,0.01449835,69839.0,69838.0,2.16835716]
[1722256160275,0.01449835,69839.0,69838.0,2.31955716]
[1722256160967,0.01449835,69839.0,69838.0,2.30955716]
[1722256161175,0.00807,69858.0,69838.0,2.30955716]
[1722256161176,0.00807,69858.0,69857.0,0.320343]
[1722256161385,0.00807,69858.0,69857.0,0.861321]
[1722256161593,0.00807,69858.0,69857.0,1.319399]
[1722256164544,0.00807,69858.0,69857.0,1.321399]
[1722256164747,0.03053971,69858.0,69857.0,1.321399]
[1722256165973,0.03053971,69858.0,69857.0,1.471399]
[1722256166329,0.00807,69858.0,69857.0,1.371399]
[1722256167063,0.00807,69858.0,69857.0,1.369399]
[1722256167409,0.00807,69858.0,69857.0,1.389399]
[1722256167752,0.00807,69858.0,69857.0,1.339399]
[1722256167956,0.00807,69858.0,69857.0,1.325399]
[1722256168369,0.00807,69858.0,69857.0,1.339399]
[1722256168370,0.03053828,69858.0,69857.0,1.339399]
[1722256168614,0.03053828,69858.0,69857.0,1.34794092]
[1722256168787,0.03053828,69858.0,69857.0,1.33394092]
[1722256169439,0.03053828,69858.0,69857.0,1.32794092]
[1722256169966,0.03053828,69858.0,69857.0,1.70697992]
[1722256170135,0.03053828,69858.0,69857.0,1.70847992]
[1722256170336,0.00857,69876.0,69875.0,1.006054]
[1722256170515,0.00807,69876.0,69875.0,1.006054]
[1722256171256,0.00857,69876.0,69875.0,1.006054]
[1722256171929,0.00807,69876.0,69875.0,1.006054]
[1722256173142,0.00807,69876.0,69875.0,1.235034]
[1722256173555,0.00807,69876.0,69875.0,1.316234]
[1722256173754,0.00807,69876.0,69875.0,1.366234]
[1722256175062,0.00807,69876.0,69875.0,1.38875992]
[1722256176374,0.00807,69876.0,69875.0,1.40275992]
[1722256176581,0.00807,69876.0,69875.0,1.38875992]
[1722256177001,0.00807,69876.0,69875.0,1.40275992]
[1722256177205,0.00807,69876.0,69875.0,1.38875992]
[1722256177408,0.00807,69876.0,69875.0,0.94567992]
[1722256177609,0.00807,69876.0,69875.0,1.02857992]
[1722256177837,0.00807,69876.0,69875.0,0.95187992]
[1722256177838,0.03053302,69876.0,69875.0,0.95187992]
[1722256178243,0.03053302,69876.0,69875.0,0.96587992]
[1722256178407,0.03103302,69876.0,69875.0,0.63999992]
[1722256178624,0.03053302,69876.0,69875.0,0.72289992]
[1722256178864,0.03053302,69876.0,69875.0,0.95187992]
[1722256180903,0.03053302,69876.0,69875.0,1.03417992]
[1722256181648,0.03053302,69876.0,69875.0,1.32835992]
[1722256181890,0.03053302,69876.0,69875.0,0.82397992]
[1722256182099,0.03053302,69876.0,69875.0,1.18085992]
[1722256182669,0.00807,69876.0,69875.0,1.19485992]
[1722256182873,0.00807,69876.0,69875.0,1.20885992]
[1722256184589,0.00807,69876.0,69875.0,1.38835992]
[1722256184800,0.00807,69876.0,69875.0,1.33835992]
[1722256186182,0.03053295,69876.0,69875.0,1.33835992]
[1722256186909,0.00807,69876.0,69875.0,1.35235992]
[1722256187437,0.00807,69876.0,69875.0,1.40235992]
[1722256187847,0.00807,69876.0,69875.0,1.63133992]
[1722256188839,0.00807,69876.0,69875.0,1.40235992]
[1722256189600,0.00807,69876.0,69875.0,1.53633992]
[1722256189780,0.00807,69876.0,69875.0,1.63133992]
[1722256189978,0.03053203,69876.0,69875.0,1.68133992]
[1722256190183,0.03053203,69876.0,69875.0,1.73133992]
[1722256190578,0.03053203,69876.0,69875.0,1.40235992]
[1722256190986,0.03053203,69876.0,69875.0,1.50235992]
[1722256191186,0.03053203,69876.0,69875.0,1.73133992]
[1722256191565,0.00807,69876.0,69875.0,1.73133992]
[1722256192168,0.00807,69876.0,69875.0,1.85029575]
[1722256192368,0.00807,69876.0,69875.0,1.73133992]
[1722256193178,0.00807,69876.0,69875.0,1.85029575]
[1722256193515,0.00807,69876.0,69875.0,1.75029575]
[1722256193944,0.00807,69876.0,69875.0,1.47131575]
[1722256194243,0.00807,69876.0,69875.0,1.20885992]
[1722256194916,0.00807,69876.0,69875.0,0.97987992]
[1722256195331,0.00807,69876.0,69875.0,1.20885992]
[1722256196367,0.0305323,69876.0,69875.0,1.20885992]
[1722256196568,0.0305323,69876.0,69875.0,0.89697992]
[1722256196769,0.00807,69876.0,69875.0,0.97987992]
[1722256199370,0.03053279,69876.0,69875.0,0.97987992]
[1722256200228,0.00807,69876.0,69875.0,0.97987992]
[1722256200806,0.00807,69876.0,69875.0,1.20885992]
[1722256201020,0.00807,69876.0,69875.0,0.97987992]
[1722256201575,0.08857,69876.0,69875.0,0.97987992]
[1722256201707,0.14927,69876.0,69875.0,0.97987992]
[1722256201909,0.14877,69876.0,69875.0,0.97987992]
[1722256202424,0.08857,69876.0,69875.0,0.93487992]
[1722256202627,0.08857,69876.0,69875.0,0.97987992]
[1722256203222,0.08857,69876.0,69875.0,1.20885992]
[1722256203418,0.00807,69876.0,69875.0,1.20885992]
[1722256204665,0.00807,69876.0,69875.0,1.25885992]
[1722256204862,0.00807,69876.0,69875.0,1.32055992]
[1722256205049,0.00807,69876.0,69875.0,1.27055992]
[1722256205250,0.00807,69876.0,69875.0,1.32055992]
[1722256205995,0.00807,69876.0,69875.0,1.32205992]
[1722256206155,0.00807,69876.0,69875.0,1.43952049]
[1722256206544,0.00807,69876.0,69875.0,1.75110049]
[1722256207101,0.00807,69876.0,69875.0,2.02510049]
[1722256207315,0.00807,69876.0,69875.0,2.02659781]
[1722256207516,0.00807,69876.0,69875.0,2.02509659]
[1722256207681,0.03053174,69876.0,69875.0,2.02509659]
[1722256207878,0.03053174,69876.0,69875.0,1.80109659]
[1722256208079,0.03053174,69876.0,69875.0,1.34491659]
[1722256208444,0.03053174,69876.0,69875.0,1.42781736]
[1722256208579,0.03053174,69876.0,69875.0,1.70679736]
[1722256208779,0.03053174,69876.0,69875.0,1.85109736]
[1722256209468,0.03053174,69876.0,69875.0,1.62211736]
[1722256210140,0.03053174,69876.0,69875.0,1.85109736]
[1722256210980,0.03053174,69876.0,69875.0,1.73213992]
[1722256211114,0.03053174,69876.0,69875.0,1.85109595]
[1722256211656,0.03053174,69876.0,69875.0,1.85109491]
[1722256212974,0.00807,69876.0,69875.0,1.85109491]
[1722256213645,0.00807,69876.0,69875.0,1.85109466]
[1722256214416,0.00807,69876.0,69875.0,1.95109466]
[1722256214614,0.00807,69876.0,69875.0,1.95259466]
[1722256214831,0.00253836,69876.0,69875.0,1.95259466]
[1722256215232,0.00253836,69876.0,69875.0,1.80609466]
[1722256215475,0.00253836,69876.0,69875.0,1.98009466]
[1722256216349,0.02499888,69876.0,69875.0,2.12659466]
[1722256216822,0.14099631,69893.0,69891.0,0.059024]
[1722256216823,0.12003087,69893.0,69891.0,0.059024]
[1722256217101,0.12003087,69893.0,69892.0,0.35741]
[1722256217312,0.0771,69893.0,69892.0,1.089182]
[1722256217504,0.12005646,69893.0,69892.0,1.089182]
[1722256217884,0.12005646,69893.0,69892.0,1.044182]
[1722256218087,0.12005646,69893.0,69892.0,1.089182]
[1722256218290,0.1429,69893.0,69892.0,1.089182]
[1722256218489,0.1429,69893.0,69892.0,0.860258]
[1722256218697,0.1429,69893.0,69892.0,1.401006]
[1722256218698,0.06443469,69893.0,69892.0,1.401006]
[1722256218876,0.0808,69901.0,69892.0,1.401006]
[1722256218877,0.0808,69901.0,69900.0,0.173473]
[1722256219075,0.0808,69901.0,69900.0,0.631269]
[1722256219076,0.1471,69901.0,69900.0,0.631269]
[1722256219275,0.23301292,69901.0,69900.0,0.631269]
[1722256219504,0.1471,69901.0,69900.0,0.860167]
[1722256219701,0.1471,69901.0,69900.0,0.631269]
[1722256220727,0.1471,69901.0,69900.0,0.586269]
[1722256220882,0.1471,69901.0,69900.0,0.860167]
[1722256221123,0.1471,69901.0,69900.0,0.874167]
[1722256221310,0.1471,69901.0,69900.0,0.645269]
[1722256221311,0.21099403,69901.0,69900.0,0.645269]
[1722256221483,0.21149403,69901.0,69900.0,0.645269]
[1722256221708,0.1471,69901.0,69900.0,0.874167]
[1722256222085,0.21149403,69901.0,69900.0,0.586245]
[1722256222310,0.1471,69901.0,69900.0,0.014]
[1722256222518,0.1471,69901.0,69900.0,0.357347]
[1722256222716,0.1471,69901.0,69900.0,0.586245]
[1722256222717,0.15602125,69901.0,69900.0,0.586245]
[1722256222996,0.15602125,69901.0,69900.0,0.343347]
[1722256223440,0.15602125,69901.0,69900.0,0.586245]
[1722256223647,0.1471,69901.0,69900.0,0.586245]
[1722256223851,0.1471,69901.0,69900.0,0.874167]
[1722256223852,0.24187207,69901.0,69900.0,0.874167]
[1722256224003,0.15602068,69901.0,69900.0,0.860167]
[1722256224204,0.17847899,69901.0,69900.0,0.871167]
[1722256224463,0.26383041,69901.0,69900.0,0.871167]
[1722256224636,0.23344239,69901.0,69900.0,0.871167]
[1722256225160,0.16955831,69901.0,69900.0,1.100065]
[1722256225356,0.16905831,69901.0,69900.0,1.100065]
[1722256226531,0.10325831,69901.0,69900.0,1.100065]
[1722256228435,0.10325831,69901.0,69900.0,0.871167]
[1722256228734,0.16475831,69901.0,69900.0,0.871167]
[1722256229411,0.22911922,69901.0,69900.0,0.871167]
[1722256229557,0.23803968,69901.0,69900.0,0.871167]
[1722256230170,0.16475831,69901.0,69900.0,0.812143]
[1722256230365,0.31818503,69901.0,69900.0,0.011]
[1722256230542,0.44687782,69901.0,69900.0,0.011]
[1722256230730,0.43018935,69901.0,69900.0,0.132449]
[1722256230975,0.31131454,69901.0,69900.0,0.590245]
[1722256231129,0.18260044,69901.0,69900.0,0.361347]
[1722256231333,0.31131454,69901.0,69900.0,0.361347]
[1722256231532,0.18260044,69901.0,69900.0,0.361347]
[1722256231934,0.31131454,69901.0,69900.0,0.361347]
[1722256232404,0.25799789,69901.0,69900.0,0.132449]
[1722256232613,0.21857644,69901.0,69900.0,0.121449]
[1722256232814,0.17367877,69901.0,69900.0,0.350347]
[1722256233004,0.18260031,69901.0,69900.0,0.580245]
[1722256233232,0.17367877,69901.0,69900.0,0.579245]
[1722256233361,0.18260015,69901.0,69900.0,0.579245]
[1722256233562,0.18260015,69901.0,69900.0,0.860167]
[1722256233563,0.17367877,69901.0,69900.0,0.860167]
[1722256233821,0.17367877,69901.0,69900.0,0.864167]
[1722256233822,0.18259965,69901.0,69900.0,0.864167]
[1722256234025,0.23803255,69901.0,69900.0,0.864167]
[1722256234227,0.16475831,69901.0,69900.0,0.864167]
[1722256234427,0.16575831,69901.0,69900.0,0.864167]
[1722256234726,0.16575831,69901.0,69900.0,0.860167]
[1722256234922,0.16475831,69901.0,69900.0,0.860167]
[1722256235237,0.2076573,69901.0,69900.0,0.860167]
[1722256236261,0.16425831,69901.0,69900.0,0.860167]
[1722256236465,0.10325831,69901.0,69900.0,1.089065]
[1722256236665,0.02245831,69901.0,69900.0,1.096065]
[1722256237308,0.02245831,69901.0,69900.0,1.317963]
[1722256238085,9e-05,69907.0,69906.0,0.846073]
[1722256238192,9e-05,69907.0,69906.0,0.928973]
[1722256238397,9e-05,69907.0,69906.0,0.942997]
[1722256238887,0.00059,69907.0,69906.0,0.942997]
[1722256240564,9e-05,69907.0,69906.0,1.537553]
[1722256241180,9e-05,69907.0,69906.0,1.661353]
[1722256241420,0.02254387,69907.0,69906.0,1.661353]
[1722256241620,0.02254387,69907.0,69906.0,1.675353]
[1722256241823,0.02254387,69907.0,69906.0,1.725353]
[1722256242183,0.02254387,69907.0,69906.0,1.825353]
[1722256242378,9e-05,69907.0,69906.0,1.849853]
[1722256242578,9e-05,69907.0,69906.0,2.092731]
[1722256242985,9e-05,69907.0,69906.0,2.064731]
[1722256243666,9e-05,69907.0,69906.0,2.077231]
[1722256243797,9e-05,69907.0,69906.0,1.899231]
[1722256244000,9e-05,69907.0,69906.0,1.594553]
[1722256245444,9e-05,69907.0,69906.0,1.304675]
[1722256246021,9e-05,69907.0,69906.0,1.290675]
[1722256246538,9e-05,69907.0,69906.0,1.304675]
[1722256246700,9e-05,69907.0,69906.0,1.290675]
[1722256246902,9e-05,69907.0,69906.0,1.304675]
[1722256247102,9e-05,69907.0,69906.0,1.318675]
[1722256247324,9e-05,69907.0,69906.0,1.304675]
[1722256247608,9e-05,69907.0,69906.0,1.318675]
[1722256248274,9e-05,69907.0,69906.0,1.304675]
[1722256248625,9e-05,69907.0,69906.0,1.318675]
[1722256248857,9e-05,69907.0,69906.0,1.111975]
[1722256249063,9e-05,69907.0,69906.0,0.654219]
[1722256249064,0.14349,69907.0,69906.0,0.654219]
[1722256249611,0.14349,69907.0,69906.0,0.640219]
[1722256249810,0.14349,69907.0,69906.0,0.883097]
[1722256250403,0.14299,69907.0,69906.0,0.883097]
[1722256250634,0.14299,69907.0,69906.0,0.869097]
[1722256250780,0.1654449,69907.0,69906.0,0.869097]
[1722256250984,0.1654449,69907.0,69906.0,1.111975]
[1722256251220,0.1654449,69907.0,69906.0,1.097975]
[1722256251221,0.1022449,69907.0,69906.0,1.097975]
[1722256251397,0.07979,69907.0,69906.0,1.083975]
[1722256251598,9e-05,69907.0,69906.0,1.083975]
[1722256252409,9e-05,69907.0,69906.0,1.362853]
[1722256252867,9e-05,69907.0,69906.0,1.444353]
[1722256253242,9e-05,69907.0,69906.0,1.394353]
[1722256253842,9e-05,69907.0,69906.0,1.165475]
[1722256254046,9e-05,69907.0,69906.0,1.097975]
[1722256254805,0.02254246,69907.0,69906.0,1.097975]
[1722256255585,0.02254246,69907.0,69906.0,1.083975]
[1722256255940,9e-05,69907.0,69906.0,1.097975]
[1722256256158,9e-05,69907.0,69906.0,0.869097]
[1722256256159,0.06519,69907.0,69906.0,0.869097]
[1722256256540,9e-05,69907.0,69906.0,0.869097]
[1722256256744,9e-05,69907.0,69906.0,0.855097]
[1722256256942,9e-05,69907.0,69906.0,0.869097]
[1722256257799,9e-05,69907.0,69906.0,0.881097]
[1722256258671,9e-05,69907.0,69906.0,0.867097]
[1722256259072,9e-05,69907.0,69906.0,0.881097]
[1722256259288,0.02304394,69907.0,69906.0,0.881097]
[1722256259470,0.02304394,69907.0,69906.0,0.652219]
[1722256259835,0.00059,69907.0,69906.0,0.626219]
[1722256259955,0.00059,69907.0,69906.0,0.640219]
[1722256260356,0.00059,69907.0,69906.0,0.869097]
[1722256260601,0.00159,69907.0,69906.0,0.883097]
[1722256262264,0.00159,69907.0,69906.0,0.654219]
[1722256262723,0.00059,69907.0,69906.0,0.640219]
[1722256263032,0.02304427,69907.0,69906.0,0.640219]
[1722256263173,0.02304427,69907.0,69906.0,0.869097]
[1722256263618,0.00059,69907.0,69906.0,0.869097]
[1722256263992,0.00059,69907.0,69906.0,0.640219]
[1722256264204,0.06539,69907.0,69906.0,0.640219]
[1722256264608,0.06539,69907.0,69906.0,0.654219]
[1722256264609,0.06639,69907.0,69906.0,0.654219]
[1722256265207,0.07530948,69907.0,69906.0,0.654219]
[1722256265413,0.06639,69907.0,69906.0,0.654219]
[1722256265612,0.06639,69907.0,69906.0,0.883097]
[1722256266012,0.00109,69907.0,69906.0,0.883097]
[1722256266216,0.01000946,69907.0,69906.0,0.883097]
[1722256267107,0.03246379,69907.0,69906.0,0.883097]
[1722256267415,0.02354433,69907.0,69906.0,0.883097]
[1722256269121,0.02404433,69907.0,69906.0,0.883097]
[1722256272252,0.02354433,69907.0,69906.0,0.883097]
[1722256274831,0.02354433,69907.0,69906.0,1.111975]
[1722256275258,0.02354433,69907.0,69906.0,0.883097]
[1722256275461,0.02404433,69907.0,69906.0,0.883097]
[1722256276226,0.03296362,69907.0,69906.0,0.883097]
[1722256276660,0.03296362,69907.0,69906.0,0.654219]
[1722256276661,0.21452531,69907.0,69906.0,0.654219]